bitfinex-derivatives/quotes_BTCF0:USTF0_20241226
["timestamp","ask_amount","ask_price","bid_price","bid_amount"]
[1735208144201,0.052519,95304.0,95297.0,0.086422]
[1735208144718,0.052514,95312.0,95301.0,0.05252]
[1735208144916,0.0328,95322.0,95301.0,0.05252]
[1735208145120,0.052515,95311.0,95301.0,0.05252]
[1735208145611,0.052511,95318.0,95307.0,0.052516]
[1735208145917,0.052511,95317.0,95311.0,0.052514]
[1735208146216,0.052511,95317.0,95312.0,0.052514]
[1735208147412,0.053511,95317.0,95312.0,0.052514]
[1735208148009,0.054511,95317.0,95312.0,0.061514]
[1735208148515,0.053511,95317.0,95312.0,0.052514]
[1735208148708,0.054511,95317.0,95312.0,0.061514]
[1735208149510,0.053511,95317.0,95312.0,0.062514]
[1735208150408,0.001,95317.0,95312.0,0.062514]
[1735208150607,0.0015743,95331.0,95313.0,0.04356393]
[1735208150806,0.0015743,95331.0,95315.0,0.10586057]
[1735208151014,0.0015743,95331.0,95329.0,0.052504]
[1735208152517,0.0015743,95331.0,95329.0,0.061504]
[1735208153110,0.0025743,95331.0,95329.0,0.061504]
[1735208153814,0.0025743,95331.0,95329.0,0.052504]
[1735208154021,0.0025743,95331.0,95329.0,0.061504]
[1735208154913,0.14066057,95360.0,95329.0,0.02072754]
[1735208154914,0.0348,95360.0,95329.0,0.02072754]
[1735208155111,0.052493,95350.0,95343.0,0.052497]
[1735208155914,0.0015735,95356.0,95346.0,0.052495]
[1735208157023,0.001,95350.0,95346.0,0.052495]
[1735208157220,0.00076,95374.0,95361.0,0.052487]
[1735208157419,0.05248,95374.0,95361.0,0.052487]
[1735208157624,0.2496049,95381.0,95361.0,0.052487]
[1735208157818,0.01169226,95380.0,95361.0,0.052487]
[1735208158022,0.01169226,95380.0,95366.0,0.10586057]
[1735208158023,0.052478,95378.0,95366.0,0.10586057]
[1735208158321,0.2496049,95381.0,95375.0,0.052479]
[1735208158524,0.052473,95386.0,95367.0,0.0341]
[1735208158715,0.052473,95386.0,95379.0,0.052477]
[1735208158915,0.01201269,95389.0,95379.0,0.052477]
[1735208159122,0.052471,95391.0,95379.0,0.052477]
[1735208160115,0.052471,95391.0,95379.0,0.053477]
[1735208160317,0.052471,95391.0,95383.0,0.052474]
[1735208160617,0.00257313,95388.0,95383.0,0.052474]
[1735208161019,0.052476,95381.0,95379.0,0.001]
[1735208161614,0.052476,95381.0,95372.0,0.052481]
[1735208162021,0.052476,95381.0,95370.0,0.21172114]
[1735208162326,0.052476,95381.0,95379.0,0.001]
[1735208163122,0.052476,95381.0,95373.0,0.05248]
[1735208163329,0.052477,95380.0,95373.0,0.05248]
[1735208163826,0.052477,95380.0,95379.0,0.004]
[1735208164423,0.052477,95380.0,95373.0,0.05948]
[1735208164817,0.05404513,95388.0,95373.0,0.05948]
[1735208165024,0.05404513,95388.0,95378.0,0.10586057]
[1735208165431,0.052472,95388.0,95379.0,0.008]
[1735208167024,0.052472,95388.0,95378.0,0.16633757]
[1735208167320,0.0348,95397.0,95378.0,0.11386057]
[1735208167516,0.0348,95397.0,95379.0,0.008]
[1735208167723,0.052476,95381.0,95379.0,0.008]
[1735208168028,0.052476,95381.0,95371.0,0.052481]
[1735208168229,0.052476,95381.0,95378.0,0.008]
[1735208168731,0.052476,95381.0,95372.0,0.05248]
[1735208168732,0.052476,95381.0,95379.0,0.008]
[1735208169526,0.052476,95381.0,95313.0,0.052513]
[1735208169527,0.052488,95358.0,95357.0,0.00157301]
[1735208169732,0.052497,95343.0,95340.0,0.00012113]
[1735208170119,0.0354,95357.0,95340.0,0.00012113]
[1735208170627,0.052498,95341.0,95340.0,0.00012113]
[1735208171027,0.052498,95341.0,95340.0,0.00912113]
[1735208173228,0.053498,95341.0,95340.0,0.00912113]
[1735208173834,0.001,95341.0,95340.0,0.00912113]
[1735208174239,0.052485,95365.0,95351.0,0.052492]
[1735208174533,0.067,95377.0,95351.0,0.052492]
[1735208174726,0.052485,95364.0,95351.0,0.052492]
[1735208175129,0.052498,95342.0,95340.0,0.00912113]
[1735208175626,0.0326,95341.0,95340.0,0.00912113]
[1735208176021,0.052506,95326.0,95325.0,0.18789026]
[1735208176228,0.15865984,95335.0,95310.0,0.00056]
[1735208176435,0.0325,95340.0,95308.0,0.18789026]
[1735208176436,0.052515,95309.0,95308.0,0.18789026]
[1735208177136,0.05264605,95309.0,95308.0,0.18789026]
[1735208177337,0.00013105,95309.0,95308.0,0.24040626]
[1735208177537,0.00013105,95309.0,95308.0,0.052516]
[1735208177733,0.00013105,95309.0,95308.0,0.06293236]
[1735208177934,0.00013105,95309.0,95308.0,0.052516]
[1735208178236,0.00113105,95309.0,95308.0,0.07193108]
[1735208178434,0.052502,95333.0,95308.0,0.01941508]
[1735208178641,0.0326,95341.0,95326.0,0.052506]
[1735208179239,0.052498,95342.0,95330.0,0.15865984]
[1735208179444,0.052498,95342.0,95331.0,0.052503]
[1735208179646,0.28141579,95389.0,95331.0,0.3]
[1735208179943,0.05248,95374.0,95368.0,0.15865984]
[1735208180141,0.05248,95374.0,95360.0,0.052487]
[1735208180142,0.05248,95374.0,95362.0,0.052486]
[1735208180336,0.052475,95383.0,95360.0,0.15865984]
[1735208180645,0.052475,95383.0,95368.0,0.15865984]
[1735208180945,0.00257329,95378.0,95368.0,0.15865984]
[1735208181943,0.00257329,95378.0,95372.0,0.05248]
[1735208182745,0.052478,95376.0,95372.0,0.05248]
[1735208182935,0.052478,95376.0,95364.0,0.052485]
[1735208183135,0.05248,95373.0,95365.0,0.01042126]
[1735208183334,0.05248,95373.0,95368.0,0.006]
[1735208183542,0.00157329,95378.0,95370.0,0.052482]
[1735208183739,0.00157329,95378.0,95373.0,0.05248]
[1735208184146,0.001,95376.0,95375.0,0.052479]
[1735208184529,0.00157329,95378.0,95375.0,0.052479]
[1735208184730,0.00257329,95378.0,95375.0,0.052479]
[1735208185137,0.00157329,95378.0,95375.0,0.052479]
[1735208185346,0.00157329,95378.0,95375.0,0.059479]
[1735208185743,0.00157329,95378.0,95375.0,0.007]
[1735208185950,0.052478,95376.0,95375.0,0.007]
[1735208186738,0.00157329,95378.0,95375.0,0.007]
[1735208186939,0.052475,95383.0,95375.0,0.007]
[1735208187145,0.052469,95393.0,95375.0,0.007]
[1735208187347,0.01143329,95397.0,95375.0,0.006]
[1735208187845,0.052477,95379.0,95375.0,0.009]
[1735208188350,0.052477,95379.0,95370.0,0.15865984]
[1735208188648,0.052477,95379.0,95375.0,0.009]
[1735208188852,0.01143329,95397.0,95375.0,0.009]
[1735208189037,0.052478,95377.0,95375.0,0.009]
[1735208190543,0.052481,95371.0,95370.0,0.16765984]
[1735208190854,0.052481,95371.0,95370.0,0.009]
[1735208191046,0.01121731,95379.0,95357.0,0.18789026]
[1735208191240,0.052488,95358.0,95357.0,0.18789026]
[1735208191946,0.0673,95378.0,95350.0,0.16079281]
[1735208191947,0.052489,95356.0,95350.0,0.16079281]
[1735208192253,0.052489,95356.0,95351.0,0.01044073]
[1735208192452,0.052489,95356.0,95352.0,0.01044073]
[1735208192750,0.052489,95356.0,95353.0,0.01044073]
[1735208192944,0.052486,95363.0,95354.0,0.01044073]
[1735208193141,0.06373793,95385.0,95355.0,0.01044073]
[1735208193337,0.052481,95371.0,95370.0,0.15865984]
[1735208193544,0.052486,95362.0,95361.0,0.15865984]
[1735208193746,0.052488,95358.0,95357.0,0.001]
[1735208194052,0.052488,95358.0,95357.0,0.01]
[1735208194545,0.052492,95351.0,95350.0,0.00157297]
[1735208197042,0.052492,95351.0,95350.0,0.01057297]
[1735208204657,0.052488,95359.0,95351.0,0.052492]
[1735208204863,0.052489,95357.0,95351.0,0.052492]
[1735208205059,0.052489,95357.0,95352.0,0.052491]
[1735208205659,0.10575221,95370.0,95351.0,0.0339]
[1735208205963,0.052485,95364.0,95352.0,0.0104472]
[1735208206158,0.052485,95364.0,95351.0,0.0339]
[1735208206159,0.052485,95364.0,95358.0,0.052488]
[1735208206559,0.052486,95363.0,95358.0,0.052488]
[1735208206767,0.052486,95362.0,95358.0,0.052488]
[1735208207257,0.052487,95360.0,95358.0,0.061488]
[1735208207450,0.052487,95360.0,95358.0,0.009]
[1735208207752,0.052491,95353.0,95352.0,0.002]
[1735208208452,0.052488,95359.0,95358.0,0.001]
[1735208208859,0.10575221,95380.0,95358.0,0.001]
[1735208209052,0.10575221,95380.0,95356.0,0.052489]
[1735208209258,0.052487,95362.0,95356.0,0.052489]
[1735208209458,0.11686359,95380.0,95356.0,0.052489]
[1735208209661,0.052486,95362.0,95356.0,0.052489]
[1735208209866,0.052486,95362.0,95358.0,0.009]
[1735208210366,0.052478,95377.0,95369.0,0.052482]
[1735208210565,0.052478,95377.0,95370.0,0.0332]
[1735208210883,0.052478,95377.0,95370.0,0.085681]
[1735208211067,0.052479,95376.0,95370.0,0.085681]
[1735208211459,0.11271298,95389.0,95370.0,0.085681]
[1735208211671,0.05248,95374.0,95370.0,0.089681]
[1735208212373,0.052481,95373.0,95370.0,0.089681]
[1735208212967,0.001,95374.0,95373.0,0.05248]
[1735208214473,0.052476,95381.0,95373.0,0.06148]
[1735208214972,0.052476,95381.0,95375.0,0.052479]
[1735208217576,0.052476,95381.0,95375.0,0.061479]
[1735208218671,0.052476,95381.0,95375.0,0.052479]
[1735208218871,0.052476,95381.0,95375.0,0.061479]
[1735208219070,0.01146222,95393.0,95375.0,0.009]
[1735208219267,0.052471,95389.0,95381.0,0.052475]
[1735208221277,0.052472,95388.0,95381.0,0.060475]
[1735208222484,0.053472,95388.0,95381.0,0.060475]
[1735208223986,0.052472,95388.0,95381.0,0.008]
[1735208224285,0.052472,95388.0,95381.0,0.001]
[1735208224488,0.052472,95388.0,95381.0,0.009]
[1735208224782,0.052472,95388.0,95381.0,0.008]
[1735208224986,0.052472,95388.0,95385.0,0.052473]
[1735208225384,0.05404197,95394.0,95385.0,0.052473]
[1735208225902,0.00157297,95394.0,95382.0,0.0355]
[1735208226085,0.00157297,95394.0,95391.0,0.05247]
[1735208226281,0.00157297,95394.0,95392.0,0.0338]
[1735208226490,0.00157297,95394.0,95393.0,0.052469]
[1735208226986,0.1,95400.0,95398.0,0.052466]
[1735208227478,0.1,95400.0,95392.0,0.0338]
[1735208227781,0.052466,95399.0,95392.0,0.0338]
[1735208228288,0.052466,95399.0,95398.0,0.006]
[1735208228789,0.052466,95399.0,95392.0,0.0428]
[1735208228982,0.1,95400.0,95392.0,0.0428]
[1735208229173,0.1,95400.0,95398.0,0.052466]
[1735208230277,0.001,95399.0,95398.0,0.05112586]
[1735208230474,0.001,95399.0,95398.0,0.06755826]
[1735208230874,0.1,95400.0,95398.0,0.06855826]
[1735208231090,0.101,95400.0,95399.0,0.0104324]
[1735208231587,0.052455,95420.0,95401.0,0.052465]
[1735208231781,0.052455,95420.0,95415.0,0.052457]
[1735208231983,0.052455,95420.0,95416.0,0.0104324]
[1735208232182,0.052455,95420.0,95415.0,0.052457]
[1735208232183,0.052455,95420.0,95417.0,0.0104324]
[1735208232483,0.0319,95426.0,95418.0,0.0104324]
[1735208232678,0.04324067,95426.0,95419.0,0.01042699]
[1735208232883,0.04324067,95426.0,95417.0,0.052455]
[1735208233084,0.04324067,95426.0,95418.0,0.01042691]
[1735208233287,0.04324067,95426.0,95419.0,0.01043023]
[1735208233486,0.04324067,95426.0,95417.0,0.052455]
[1735208233685,0.01134067,95426.0,95417.0,0.052455]
[1735208233892,0.05245,95429.0,95417.0,0.052455]
[1735208234191,0.001,95426.0,95417.0,0.052455]
[1735208234587,0.05245,95429.0,95417.0,0.052455]
[1735208235382,0.1055889,95430.0,95409.0,0.05246]
[1735208235600,0.052455,95419.0,95410.0,0.1055889]
[1735208235899,0.0353,95418.0,95410.0,0.1055889]
[1735208236096,0.0353,95418.0,95412.0,0.052458]
[1735208236289,0.0353,95418.0,95410.0,0.1055889]
[1735208236495,0.0353,95418.0,95416.0,0.052456]
[1735208236700,0.05402354,95427.0,95416.0,0.052456]
[1735208236890,0.05402354,95427.0,95417.0,0.1055889]
[1735208237487,0.052452,95424.0,95417.0,0.052456]
[1735208237689,0.00157254,95427.0,95412.0,0.002]
[1735208237991,0.00157254,95427.0,95416.0,0.001]
[1735208237992,0.052456,95417.0,95416.0,0.001]
[1735208239297,0.052453,95422.0,95416.0,0.001]
[1735208239498,0.052453,95422.0,95415.0,0.052457]
[1735208239993,0.052453,95422.0,95416.0,0.001]
[1735208240498,0.052453,95422.0,95415.0,0.052457]
[1735208240700,0.052453,95422.0,95415.0,0.053457]
[1735208241092,0.052453,95422.0,95416.0,0.001]
[1735208242197,0.052453,95422.0,95416.0,0.053456]
[1735208242701,0.052455,95420.0,95416.0,0.052456]
[1735208242890,0.0334,95419.0,95416.0,0.052456]
[1735208243289,0.0334,95419.0,95416.0,0.053456]
[1735208243486,0.0334,95419.0,95416.0,0.001]
[1735208243700,0.052456,95418.0,95416.0,0.001]
[1735208244294,0.0334,95419.0,95408.0,0.05246]
[1735208244495,0.052455,95418.0,95416.0,0.001]
[1735208245995,0.052456,95417.0,95416.0,0.001]
[1735208250904,0.052456,95417.0,95416.0,0.01145051]
[1735208251503,0.052456,95417.0,95416.0,0.001]
[1735208253505,0.052456,95417.0,95416.0,0.01145157]
[1735208253690,0.052456,95417.0,95416.0,0.01144869]
[1735208255923,0.052456,95417.0,95416.0,0.01145731]
[1735208258807,0.052456,95417.0,95416.0,0.001]
[1735208260206,0.052456,95417.0,95416.0,0.01145863]
[1735208262508,0.052456,95417.0,95416.0,0.01146177]
[1735208265211,0.052456,95417.0,95416.0,0.01146066]
[1735208268017,0.052456,95417.0,95416.0,0.001]
[1735208268215,0.052456,95417.0,95416.0,0.01146222]
[1735208270008,0.052456,95417.0,95416.0,0.001]
[1735208271122,0.052456,95417.0,95416.0,0.01145854]
[1735208271716,0.052456,95417.0,95416.0,0.01145855]
[1735208277319,0.052456,95417.0,95416.0,0.0114717]
[1735208279234,0.052456,95417.0,95416.0,0.0174717]
[1735208279528,0.052456,95417.0,95416.0,0.007]
[1735208279733,0.052454,95420.0,95416.0,0.007]
[1735208280034,0.052456,95417.0,95416.0,0.007]
[1735208280829,0.052465,95400.0,95395.0,0.24192963]
[1735208281016,0.052467,95396.0,95395.0,0.18946263]
[1735208281217,0.052467,95396.0,95395.0,0.19994002]
[1735208281529,0.052464,95403.0,95401.0,0.052464]
[1735208281720,0.052464,95403.0,95402.0,0.01047739]
[1735208281930,0.1055889,95411.0,95402.0,0.01047739]
[1735208282230,0.052461,95408.0,95403.0,0.06294039]
[1735208282431,0.052461,95408.0,95404.0,0.01047739]
[1735208282634,0.052461,95408.0,95405.0,0.01047739]
[1735208282824,0.052461,95408.0,95406.0,0.01047739]
[1735208283023,0.052461,95408.0,95407.0,0.01047739]
[1735208283834,0.053461,95408.0,95407.0,0.01047739]
[1735208285735,0.053461,95408.0,95407.0,0.01647739]
[1735208287637,0.001,95408.0,95407.0,0.06893839]
[1735208288332,0.001,95408.0,95407.0,0.006]
[1735208288534,0.05246,95409.0,95407.0,0.01046592]
[1735208288739,0.052461,95407.0,95395.0,0.00157237]
[1735208288923,0.052465,95399.0,95396.0,0.0104656]
[1735208289127,0.052466,95398.0,95397.0,0.0104656]
[1735208290235,0.053466,95398.0,95397.0,0.0194656]
[1735208290640,0.053466,95398.0,95397.0,0.0204656]
[1735208291232,0.053466,95398.0,95397.0,0.0194656]
[1735208291436,0.053466,95398.0,95397.0,0.01]
[1735208291637,0.053466,95398.0,95397.0,0.02046896]
[1735208291837,0.052466,95398.0,95397.0,0.001]
[1735208292136,0.053466,95398.0,95397.0,0.0204679]
[1735208292332,0.053466,95398.0,95397.0,0.0114679]
[1735208292531,0.053466,95398.0,95397.0,0.0204679]
[1735208293026,0.053466,95398.0,95397.0,0.0114679]
[1735208293027,0.052466,95398.0,95397.0,0.0114679]
[1735208293228,0.053466,95398.0,95397.0,0.0194679]
[1735208294443,0.001,95398.0,95397.0,0.01946654]
[1735208295127,0.18764767,95401.0,95398.0,0.052466]
[1735208295333,0.18764767,95401.0,95400.0,0.052465]
[1735208295539,0.18764767,95401.0,95400.0,0.06293154]
[1735208296038,0.24010867,95407.0,95403.0,0.052463]
[1735208296340,0.24010867,95407.0,95404.0,0.01046654]
[1735208296539,0.24010867,95407.0,95405.0,0.01046654]
[1735208296738,0.24010867,95407.0,95398.0,0.009]
[1735208296739,0.18764767,95410.0,95406.0,0.01046654]
[1735208296932,0.18764767,95410.0,95408.0,0.05246]
[1735208297133,0.18764767,95410.0,95409.0,0.01046654]
[1735208298330,0.18764767,95410.0,95408.0,0.05246]
[1735208298535,0.18764767,95410.0,95409.0,0.01445012]
[1735208298734,0.21902466,95425.0,95422.0,0.052452]
[1735208299034,0.21902466,95425.0,95423.0,0.06290184]
[1735208299237,0.21902466,95425.0,95424.0,0.01044984]
[1735208300034,0.052449,95429.0,95425.0,0.052451]
[1735208300234,0.052449,95429.0,95426.0,0.01044307]
[1735208300637,0.052449,95429.0,95425.0,0.052451]
[1735208301532,0.01101705,95433.0,95425.0,0.052451]
[1735208301733,0.052444,95439.0,95432.0,0.052447]
[1735208301933,0.052444,95438.0,95432.0,0.052447]
[1735208302146,0.052444,95438.0,95433.0,0.01044468]
[1735208302344,0.052444,95438.0,95432.0,0.052447]
[1735208303146,0.052444,95438.0,95433.0,0.06288688]
[1735208303343,0.21902466,95443.0,95441.0,0.052442]
[1735208303850,0.05244,95446.0,95442.0,0.032]
[1735208304344,0.21902466,95449.0,95442.0,0.032]
[1735208304541,0.21902466,95449.0,95444.0,0.052441]
[1735208304743,0.21902466,95449.0,95445.0,0.05244]
[1735208304939,0.21902466,95449.0,95442.0,0.032]
[1735208305140,0.21902466,95449.0,95448.0,0.052439]
[1735208305449,0.00076,95457.0,95456.0,0.052434]
[1735208305645,0.21974466,95461.0,95456.0,0.052434]
[1735208305948,0.21902466,95461.0,95456.0,0.052434]
[1735208306143,0.21902466,95461.0,95449.0,0.0624]
[1735208306344,0.21902466,95461.0,95457.0,0.052433]
[1735208306851,0.00072,95474.0,95457.0,0.052433]
[1735208307140,0.052424,95475.0,95458.0,0.01042219]
[1735208307347,0.052424,95475.0,95466.0,0.052428]
[1735208307548,0.052424,95475.0,95470.0,0.052426]
[1735208307743,0.01104548,95478.0,95460.0,0.1055889]
[1735208307939,0.21902466,95481.0,95472.0,0.052425]
[1735208308144,0.05242,95482.0,95472.0,0.052425]
[1735208308458,0.05242,95482.0,95473.0,0.052424]
[1735208308645,0.05242,95482.0,95469.0,0.0662]
[1735208308841,0.01070629,95485.0,95469.0,0.0662]
[1735208309049,0.052416,95490.0,95480.0,0.052421]
[1735208309356,0.1,95500.0,95498.0,0.052411]
[1735208311244,0.08316807,95500.0,95498.0,0.052411]
[1735208311848,0.08416807,95500.0,95498.0,0.052411]
[1735208312834,0.08416807,95500.0,95491.0,0.0345]
[1735208313039,0.08416807,95500.0,95479.0,0.052421]
[1735208313347,0.052417,95488.0,95479.0,0.052421]
[1735208313552,0.052417,95488.0,95469.0,0.0325]
[1735208313553,0.052417,95488.0,95480.0,0.052421]
[1735208314550,0.052417,95488.0,95481.0,0.05242]
[1735208314943,0.052411,95498.0,95487.0,0.052417]
[1735208315149,0.001,95488.0,95487.0,0.052417]
[1735208315647,0.001,95488.0,95481.0,0.009]
[1735208316546,0.052417,95487.0,95481.0,0.009]
[1735208316750,0.001,95488.0,95481.0,0.009]
[1735208316751,0.001,95488.0,95483.0,0.052419]
[1735208316952,0.001,95488.0,95486.0,0.052418]
[1735208317255,0.001,95488.0,95487.0,0.009]
[1735208318047,0.001,95488.0,95486.0,0.052418]
[1735208319255,0.001,95488.0,95487.0,0.061417]
[1735208319956,0.08316807,95500.0,95499.0,0.05241]
[1735208321355,0.08316807,95500.0,95499.0,0.06141]
[1735208321356,0.08416807,95500.0,95499.0,0.06141]
[1735208321957,0.08416807,95500.0,95499.0,0.06341]
[1735208322659,0.08416807,95500.0,95499.0,0.06141]
[1735208322853,0.08416807,95500.0,95499.0,0.06341]
[1735208323155,0.08416807,95500.0,95499.0,0.011]
[1735208323750,0.08316807,95500.0,95499.0,0.002]
[1735208323959,0.08316807,95500.0,95499.0,0.011]
[1735208323960,0.08416807,95500.0,95499.0,0.011]
[1735208324845,0.08316807,95500.0,95499.0,0.002]
[1735208325050,0.08416807,95500.0,95499.0,0.01]
[1735208325458,0.08416807,95500.0,95499.0,0.001]
[1735208325648,0.08316807,95500.0,95499.0,0.001]
[1735208327159,0.052396,95526.0,95520.0,0.052399]
[1735208328252,0.00257115,95521.0,95520.0,0.061399]
[1735208328844,0.00257115,95521.0,95520.0,0.062399]
[1735208330259,0.00157115,95521.0,95520.0,0.053399]
[1735208330459,0.00257115,95521.0,95520.0,0.062399]
[1735208330986,0.00257115,95521.0,95520.0,0.061399]
[1735208331260,0.00257115,95521.0,95520.0,0.062399]
[1735208331757,0.00257115,95521.0,95520.0,0.061399]
[1735208331947,0.00157115,95521.0,95520.0,0.062399]
[1735208332154,0.00257115,95521.0,95520.0,0.062399]
[1735208332549,0.00257115,95521.0,95520.0,0.061399]
[1735208332756,0.00257115,95521.0,95520.0,0.063399]
[1735208333549,0.00157115,95521.0,95520.0,0.07382267]
[1735208333753,0.052396,95526.0,95524.0,0.052397]
[1735208335263,0.052396,95526.0,95524.0,0.061397]
[1735208335467,0.052396,95526.0,95524.0,0.062397]
[1735208335766,0.0636,95539.0,95528.0,0.052394]
[1735208335767,0.052393,95532.0,95528.0,0.052394]
[1735208335952,0.052393,95531.0,95529.0,0.01043535]
[1735208336153,0.052393,95531.0,95530.0,0.01043535]
[1735208338066,0.052393,95531.0,95530.0,0.01643535]
[1735208339269,0.052393,95531.0,95530.0,0.01633259]
[1735208340053,0.052393,95531.0,95530.0,0.006]
[1735208342465,0.052393,95531.0,95530.0,0.058393]
[1735208343471,0.0636,95539.0,95527.0,0.2501743]
[1735208343669,0.3636,95539.0,95527.0,0.2501743]
[1735208343859,0.052395,95528.0,95527.0,0.2501743]
[1735208344061,0.052395,95528.0,95527.0,0.1992743]
[1735208344361,0.052395,95528.0,95512.0,0.37586146]
[1735208344362,0.052395,95528.0,95524.0,0.18755731]
[1735208344664,0.052396,95525.0,95524.0,0.04775731]
[1735208344968,0.0524,95519.0,95518.0,0.0974743]
[1735208345167,0.353155,95528.0,95501.0,0.37582146]
[1735208345168,0.052404,95510.0,95501.0,0.37582146]
[1735208345372,0.052404,95510.0,95501.0,0.37526146]
[1735208345373,0.052409,95502.0,95501.0,0.37526146]
[1735208345867,0.052416,95490.0,95484.0,0.00056]
[1735208346460,0.052416,95490.0,95483.0,0.052419]
[1735208346461,0.052416,95489.0,95483.0,0.052419]
[1735208346773,0.052418,95486.0,95483.0,0.052419]
[1735208347568,0.052419,95485.0,95484.0,0.009]
[1735208348169,0.052419,95485.0,95483.0,0.01]
[1735208348667,0.052419,95485.0,95483.0,0.008]
[1735208348972,0.052419,95485.0,95484.0,0.001]
[1735208349859,0.052419,95485.0,95484.0,0.01]
[1735208350374,0.052419,95485.0,95484.0,0.009]
[1735208350874,0.14633051,95485.0,95484.0,0.009]
[1735208351072,0.052422,95478.0,95477.0,0.0326]
[1735208351271,0.052422,95478.0,95477.0,0.04304371]
[1735208351473,0.052422,95478.0,95477.0,0.04304048]
[1735208351672,0.052422,95478.0,95477.0,0.0326]
[1735208353272,0.09391151,95479.0,95444.0,0.00056]
[1735208353488,0.2111778,95468.0,95451.0,0.0656]
[1735208353775,0.052436,95453.0,95451.0,0.0656]
[1735208354975,0.052436,95453.0,95451.0,0.0666]
[1735208356166,0.052436,95453.0,95451.0,0.0756]
[1735208356563,0.052436,95453.0,95451.0,0.0666]
[1735208356768,0.052436,95453.0,95451.0,0.0736]
[1735208357169,0.052436,95453.0,95451.0,0.0666]
[1735208357375,0.052436,95453.0,95451.0,0.0736]
[1735208358875,0.052436,95453.0,95451.0,0.0412]
[1735208359266,0.052436,95453.0,95451.0,0.0342]
[1735208359471,0.052436,95453.0,95451.0,0.008]
[1735208359972,0.052436,95453.0,95451.0,0.007]
[1735208360181,0.053436,95453.0,95451.0,0.007]
[1735208360384,0.053436,95453.0,95445.0,0.0314]
[1735208360571,0.001,95453.0,95451.0,0.006]
[1735208360773,0.19950041,95455.0,95451.0,0.006]
[1735208360774,0.052436,95452.0,95451.0,0.006]
[1735208361868,0.053436,95452.0,95451.0,0.006]
[1735208363173,0.05244,95446.0,95445.0,0.0404]
[1735208363678,0.05244,95446.0,95445.0,0.0314]
[1735208365385,0.05244,95446.0,95445.0,0.0404]
[1735208368685,0.05244,95446.0,95445.0,0.0394]
[1735208379690,0.10343364,95446.0,95445.0,0.0394]
[1735208385684,0.21908723,95454.0,95445.0,0.0394]
[1735208386193,0.052438,95449.0,95446.0,0.05244]
[1735208386688,0.21908723,95457.0,95447.0,0.052439]
[1735208386891,0.052435,95455.0,95447.0,0.052439]
[1735208387594,0.052435,95454.0,95447.0,0.052439]
[1735208388490,0.18835345,95455.0,95446.0,0.007]
[1735208388692,0.21980723,95470.0,95454.0,0.052435]
[1735208388998,0.32467613,95470.0,95447.0,0.007]
[1735208389289,0.052431,95462.0,95455.0,0.052434]
[1735208389490,0.052431,95462.0,95456.0,0.052434]
[1735208389699,0.21908723,95468.0,95457.0,0.0334]
[1735208389896,0.21908723,95468.0,95463.0,0.05243]
[1735208390295,0.15685803,95464.0,95463.0,0.05243]
[1735208391699,0.001,95464.0,95463.0,0.05343]
[1735208392403,0.001,95464.0,95463.0,0.06411319]
[1735208406399,0.00157189,95473.0,95472.0,0.052425]
[1735208407603,0.00257189,95473.0,95472.0,0.052425]
[1735208408499,0.00257189,95473.0,95472.0,0.058425]
[1735208409010,0.00257189,95473.0,95472.0,0.006]
[1735208409211,0.03537189,95473.0,95440.0,0.0328]
[1735208409416,0.052434,95456.0,95449.0,0.052437]
[1735208409612,0.1055889,95470.0,95452.0,0.052436]
[1735208409906,0.052434,95456.0,95452.0,0.052436]
[1735208410106,0.1055889,95462.0,95447.0,0.0333]
[1735208410312,0.052438,95449.0,95447.0,0.0333]
[1735208410712,0.0328,95448.0,95447.0,0.0333]
[1735208410910,0.052442,95441.0,95440.0,0.005]
[1735208411706,0.0328,95448.0,95440.0,0.005]
[1735208411906,0.15685803,95445.0,95442.0,0.052441]
[1735208413206,0.15685803,95445.0,95442.0,0.053441]
[1735208413417,0.27296221,95448.0,95442.0,0.053441]
[1735208413713,0.22052421,95448.0,95442.0,0.053441]
[1735208413914,0.052439,95447.0,95442.0,0.053441]
[1735208414306,0.001,95445.0,95442.0,0.061441]
[1735208415410,0.24016321,95447.0,95442.0,0.061441]
[1735208415813,0.18772421,95446.0,95442.0,0.061441]
[1735208417509,0.001,95445.0,95442.0,0.061441]
[1735208418108,0.18872421,95446.0,95442.0,0.061441]
[1735208418513,0.001,95446.0,95442.0,0.061441]
[1735208418810,0.24016321,95447.0,95442.0,0.061441]
[1735208418811,0.001,95445.0,95442.0,0.061441]
[1735208420410,0.001,95446.0,95442.0,0.061441]
[1735208420918,0.001,95446.0,95442.0,0.053441]
[1735208421112,0.001,95445.0,95442.0,0.061441]
[1735208421508,0.052439,95447.0,95442.0,0.053441]
[1735208421708,0.001,95446.0,95442.0,0.061441]
[1735208422019,0.001,95446.0,95442.0,0.060441]
[1735208422219,0.001,95445.0,95442.0,0.061441]
[1735208422720,0.001,95445.0,95443.0,0.05244]
[1735208423717,0.001,95446.0,95443.0,0.05244]
[1735208424215,0.052437,95445.0,95443.0,0.05244]
[1735208424405,0.052437,95445.0,95443.0,0.06044]
[1735208424719,0.053437,95445.0,95443.0,0.06044]
[1735208425020,0.052437,95445.0,95443.0,0.06144]
[1735208427222,0.21001199,95445.0,95443.0,0.06144]
[1735208428324,0.21001199,95445.0,95443.0,0.009]
[1735208428536,0.053437,95445.0,95443.0,0.009]
[1735208432121,0.052448,95429.0,95427.0,0.052449]
[1735208432717,0.2111778,95437.0,95413.0,0.0662]
[1735208432924,0.052455,95417.0,95413.0,0.0662]
[1735208433228,0.1055889,95423.0,95413.0,0.118656]
[1735208433427,0.052456,95415.0,95413.0,0.118656]
[1735208434227,0.052456,95415.0,95413.0,0.125656]